bitfinex-derivatives/quotes_BTCF0:USTF0_20251202
["timestamp","ask_amount","ask_price","bid_price","bid_amount"]
[1764641650643,0.53684,86577.0,86576.0,0.13197]
[1764641651040,0.3723502,86585.0,86584.0,0.10163]
[1764641651253,0.9491902,86585.0,86584.0,0.10663]
[1764641651469,1.1691902,86585.0,86584.0,0.10663]
[1764641651651,1.1691902,86585.0,86584.0,0.005]
[1764641651964,1.1691902,86585.0,86584.0,0.10163]
[1764641653744,1.15764,86585.0,86584.0,0.10163]
[1764641654052,0.3608,86585.0,86584.0,0.10163]
[1764641654253,0.89772,86585.0,86584.0,0.10163]
[1764641654458,0.89872,86585.0,86584.0,0.10163]
[1764641654855,0.53792,86585.0,86584.0,0.10163]
[1764641655059,0.3608,86596.0,86595.0,0.10163]
[1764641655245,0.89772,86596.0,86595.0,0.10163]
[1764641656760,0.89772,86596.0,86595.0,0.10263]
[1764641657362,1.34772,86596.0,86595.0,0.10263]
[1764641657551,0.89772,86596.0,86595.0,0.10263]
[1764641657758,1.05772,86596.0,86595.0,0.10263]
[1764641658462,1.05772,86596.0,86595.0,0.10163]
[1764641658851,0.89772,86596.0,86595.0,0.10163]
[1764641661067,0.89772,86596.0,86595.0,0.10363]
[1764641661364,0.89772,86596.0,86595.0,0.10163]
[1764641662562,1.33772,86596.0,86584.0,0.03034]
[1764641662862,0.3608,86585.0,86584.0,0.03034]
[1764641663051,1.32776,86585.0,86584.0,0.03034]
[1764641664661,1.32776,86585.0,86584.0,0.03134]
[1764641665060,1.32776,86585.0,86584.0,0.0811]
[1764641666158,0.92776,86585.0,86584.0,0.13297]
[1764641666856,0.89776,86585.0,86584.0,0.13297]
[1764641667753,0.89776,86585.0,86584.0,0.1445202]
[1764641667952,0.53696,86585.0,86584.0,0.1445202]
[1764641668955,0.3608,86596.0,86595.0,0.10163]
[1764641669176,0.8978,86596.0,86595.0,0.10163]
[1764641670258,0.8988,86596.0,86595.0,0.10163]
[1764641671167,0.8978,86596.0,86595.0,0.10163]
[1764641671757,0.8978,86596.0,86595.0,0.10263]
[1764641677467,0.537,86596.0,86595.0,0.10263]
[1764641679458,0.537,86596.0,86595.0,0.10163]
[1764641679665,0.537,86596.0,86595.0,0.10263]
[1764641681073,0.537,86596.0,86595.0,0.10163]
[1764641681374,0.537,86596.0,86595.0,0.10263]
[1764641681871,0.00017319,86601.0,86600.0,0.1033881]
[1764641682074,0.00017319,86601.0,86600.0,0.4641881]
[1764641682258,0.06150655,86625.0,86619.0,0.0115455]
[1764641682458,0.74276,86621.0,86620.0,0.09184]
[1764641683066,0.3608,86621.0,86620.0,0.09184]
[1764641683864,0.3608,86621.0,86620.0,0.09284]
[1764641684573,0.7408,86621.0,86620.0,0.09284]
[1764641685256,0.7408,86621.0,86620.0,0.04524]
[1764641685462,0.7408,86621.0,86620.0,0.001]
[1764641685463,0.7523453,86621.0,86620.0,0.001]
[1764641686069,0.0115462,86615.0,86612.0,0.00017319]
[1764641686275,0.3608,86613.0,86612.0,0.00017319]
[1764641686570,1.27772,86613.0,86612.0,0.00017319]
[1764641688572,1.01772,86613.0,86612.0,0.00017319]
[1764641689169,1.01772,86613.0,86612.0,0.09201319]
[1764641689371,0.3608,86613.0,86612.0,0.09201319]
[1764641691069,0.53688,86616.0,86615.0,0.09184]
[1764641692183,0.53688,86616.0,86615.0,0.09284]
[1764641696275,0.011545,86624.0,86623.0,0.09184]
[1764641697374,0.36097319,86629.0,86616.0,0.02696]
[1764641697375,0.0115445,86628.0,86627.0,0.09184]
[1764641697684,0.36097319,86629.0,86627.0,0.09184]
[1764641697878,0.50097319,86629.0,86627.0,0.09184]
[1764641698683,0.50097319,86629.0,86628.0,0.09184]
[1764641699277,0.0125444,86628.0,86624.0,0.0712]
[1764641699477,0.2425444,86628.0,86627.0,0.09184]
[1764641699672,0.231,86628.0,86627.0,0.09184]
[1764641700182,0.23,86628.0,86627.0,0.09184]
[1764641700390,0.36097319,86629.0,86628.0,0.09184]
[1764641700391,0.00017319,86629.0,86628.0,0.09184]
[1764641701281,0.00017319,86629.0,86628.0,0.1033844]
[1764641702271,0.00017319,86629.0,86628.0,0.09184]
[1764641702583,0.37017319,86629.0,86628.0,0.09184]
[1764641703676,0.11017319,86629.0,86628.0,0.09184]
[1764641705274,0.00017319,86629.0,86628.0,0.1033844]
[1764641705573,0.3608,86654.0,86645.0,0.0958621]
[1764641705775,0.06150655,86675.0,86672.0,0.02433]
[1764641705990,0.24,86675.0,86674.0,0.04224]
[1764641706575,0.24,86675.0,86674.0,0.08432]
[1764641707388,0.001,86675.0,86674.0,0.08432]
[1764641707775,0.3608,86677.0,86674.0,0.08432]
[1764641708176,0.3608,86677.0,86676.0,0.08432]
[1764641708774,0.00017263,86683.0,86682.0,0.08432]
[1764641708976,0.12017263,86683.0,86682.0,0.08432]
[1764641709388,0.00017263,86683.0,86682.0,0.08432]
[1764641709585,0.39017263,86683.0,86682.0,0.08432]
[1764641709788,0.39017263,86683.0,86679.0,0.02433]
[1764641711191,0.39217263,86683.0,86679.0,0.06657]
[1764641711387,0.39217263,86683.0,86682.0,0.08432]
[1764641711578,0.09217263,86683.0,86682.0,0.08432]
[1764641711776,0.44217263,86683.0,86679.0,0.06657]
[1764641712189,0.44317263,86683.0,86679.0,0.06657]
[1764641712391,0.44317263,86683.0,86672.0,0.03605465]
[1764641712696,0.44317263,86683.0,86672.0,0.12037465]
[1764641712991,0.44217263,86683.0,86679.0,0.02433]
[1764641713190,0.44217263,86683.0,86679.0,0.06657]
[1764641713388,0.44117263,86683.0,86679.0,0.06657]
[1764641713588,0.44117263,86683.0,86679.0,0.02433]
[1764641713990,0.44017263,86683.0,86679.0,0.02433]
[1764641714199,0.44017263,86683.0,86672.0,0.02433]
[1764641714381,0.3608,86673.0,86672.0,0.02433]
[1764641714690,0.7908,86673.0,86672.0,0.06657]
[1764641715986,0.00117263,86683.0,86682.0,0.08432]
[1764641716181,0.00117263,86683.0,86680.0,0.02433]
[1764641716182,0.33117263,86683.0,86680.0,0.02433]
[1764641716491,0.33117263,86683.0,86681.0,0.0537773]
[1764641716688,0.33117263,86683.0,86681.0,0.0958573]
[1764641716990,0.00117263,86683.0,86682.0,0.08432]
[1764641717192,0.00017263,86683.0,86682.0,0.08432]
[1764641717582,0.3608,86699.0,86698.0,0.08432]
[1764641717889,0.7308,86699.0,86698.0,0.08432]
[1764641718083,0.3608,86699.0,86698.0,0.08432]
[1764641718284,0.7908,86699.0,86698.0,0.08432]
[1764641718677,0.7908,86699.0,86698.0,0.04224]
[1764641718878,0.7908,86699.0,86690.0,0.00017309]
[1764641719080,0.3608,86692.0,86690.0,0.00017309]
[1764641719280,0.6308,86692.0,86690.0,0.04241309]
[1764641719589,0.6308,86692.0,86690.0,0.00017309]
[1764641721698,0.6338,86692.0,86690.0,0.00017309]
[1764641722584,0.6328,86692.0,86690.0,0.00017309]
[1764641722783,0.6338,86692.0,86690.0,0.00017309]
[1764641723091,0.6318,86692.0,86690.0,0.00017309]
[1764641723286,0.6338,86692.0,86690.0,0.00017309]
[1764641723993,0.6338,86692.0,86690.0,0.08449309]
[1764641724186,0.43458389,86692.0,86691.0,0.08432]
[1764641725297,0.163,86692.0,86691.0,0.08432]
[1764641725490,0.003,86692.0,86691.0,0.095856]
[1764641725686,0.002,86692.0,86691.0,0.095856]
[1764641725888,0.003,86692.0,86691.0,0.095856]
[1764641726297,0.001,86692.0,86691.0,0.095856]
[1764641726589,0.003,86692.0,86691.0,0.095856]
[1764641726984,0.002,86692.0,86691.0,0.095856]
[1764641727178,0.53644,86705.0,86691.0,0.095856]
[1764641727378,0.38545931,86705.0,86704.0,0.08432]
[1764641727587,0.49545931,86705.0,86704.0,0.08432]
[1764641727992,0.81545931,86705.0,86704.0,0.08432]
[1764641728195,0.47545931,86705.0,86704.0,0.08432]
[1764641729196,0.38545931,86705.0,86704.0,0.08432]
[1764641729592,0.003,86705.0,86704.0,0.08432]
[1764641729793,0.78559234,86720.0,86719.0,0.08432]
[1764641729794,4e-05,86720.0,86719.0,0.08432]
[1764641729994,0.39004,86720.0,86719.0,0.08432]
[1764641730199,4e-05,86720.0,86719.0,0.08432]
[1764641730692,0.8972,86732.0,86731.0,0.10038]
[1764641730886,1.2572,86732.0,86731.0,0.10038]
[1764641732199,1.2582,86732.0,86731.0,0.10038]
[1764641732402,1.2582,86732.0,86731.0,0.04224]
[1764641732792,1.2582,86732.0,86731.0,0.09956]
[1764641733192,0.8982,86732.0,86731.0,0.09956]
[1764641733702,0.5374,86732.0,86731.0,0.09956]
[1764641734705,0.9274,86732.0,86731.0,0.09956]
[1764641735003,0.5974,86732.0,86731.0,0.09956]
[1764641735198,0.5964,86732.0,86731.0,0.09956]
[1764641736306,0.7908,86732.0,86731.0,0.002]
[1764641736695,0.7908,86732.0,86725.0,0.47382]
[1764641736891,0.5808,86732.0,86731.0,0.11402]
[1764641737294,0.1859289,86751.0,86750.0,0.1245481]
[1764641737605,0.20658767,86773.0,86752.0,0.1245478]
[1764641737606,0.11296,86753.0,86752.0,0.1245478]
[1764641738007,0.14709,86760.0,86759.0,0.1245469]
[1764641738202,0.14709,86769.0,86768.0,0.0672257]
[1764641738398,0.14709,86769.0,86768.0,0.0557]
[1764641738992,0.53624,86773.0,86772.0,0.11302]
[1764641739210,0.03005,86787.0,86772.0,0.11302]
[1764641739400,0.11296,86773.0,86772.0,0.11302]
[1764641740212,0.11296,86769.0,86768.0,0.3608]
[1764641740506,0.03413,86778.0,86768.0,0.3608]
[1764641740507,0.03413,86778.0,86772.0,0.0115251]
[1764641740806,0.001,86773.0,86772.0,0.11302]
[1764641741105,0.001,86773.0,86772.0,0.47382]
[1764641741307,0.11296,86796.0,86795.0,0.11302]
[1764641741521,0.41803,86800.0,86799.0,0.11302]
[1764641741700,0.92789,86800.0,86792.0,0.3608]
[1764641741904,0.11296,86793.0,86792.0,0.3608]
[1764641742095,0.11296,86793.0,86792.0,0.47382]
[1764641742297,0.11296,86793.0,86792.0,0.4165]
[1764641742608,0.11296,86793.0,86792.0,0.3608]
[1764641742801,0.18296,86793.0,86792.0,0.3608]
[1764641743111,0.11296,86793.0,86792.0,0.47482]
[1764641743307,0.28328234,86810.0,86792.0,0.47482]
[1764641743308,0.39493,86820.0,86803.0,0.11302]
[1764641743499,0.05723,86808.0,86807.0,0.47382]
[1764641744111,0.01190056,86818.0,86817.0,0.11302]
[1764641744306,0.01190056,86818.0,86817.0,0.1248434]
[1764641744702,0.00912896,86818.0,86817.0,0.1248434]
[1764641745214,0.41803,86846.0,86845.0,0.0557]
[1764641745411,0.50296,86846.0,86845.0,0.0557]
[1764641745604,0.11296,86842.0,86841.0,0.3608]
[1764641745907,0.52296,86842.0,86841.0,0.3608]
[1764641746296,0.85296,86842.0,86841.0,0.3608]
[1764641746500,0.52296,86842.0,86841.0,0.3608]
[1764641746700,0.11296,86842.0,86841.0,0.47482]
[1764641746896,0.48296,86842.0,86841.0,0.3618]
[1764641747314,0.48296,86842.0,86841.0,0.47482]
[1764641747811,0.48296,86842.0,86841.0,0.3618]
[1764641748510,0.89296,86842.0,86841.0,0.3618]
[1764641748706,0.85296,86842.0,86841.0,0.001]
[1764641748909,0.11296,86826.0,86825.0,0.3608]
[1764641749109,0.52296,86826.0,86825.0,0.3608]
[1764641749911,0.11296,86818.0,86817.0,0.00017276]
[1764641750107,0.96296,86818.0,86817.0,0.00017276]
[1764641750414,0.11296,86799.0,86798.0,0.3608]
[1764641750613,0.36,86799.0,86798.0,0.47382]
[1764641751207,0.03413,86812.0,86798.0,0.47382]
[1764641751409,0.50136,86812.0,86811.0,0.0557]
[1764641751720,0.52296,86812.0,86811.0,0.0557]
[1764641751916,0.52296,86812.0,86805.0,0.3608]
[1764641751917,0.05723,86806.0,86805.0,0.4165]
[1764641752212,0.48296,86806.0,86805.0,0.3608]
[1764641753011,0.86296,86806.0,86805.0,0.3608]
[1764641753411,0.86296,86806.0,86796.0,0.36097276]
[1764641753710,0.11296,86797.0,86796.0,0.36097276]
[1764641753918,0.49296,86797.0,86796.0,0.00017276]
[1764641754615,0.11296,86797.0,86796.0,0.05587276]
[1764641754821,0.51296,86797.0,86796.0,0.05587276]
[1764641755014,0.11296,86804.0,86800.0,0.0115214]
[1764641755214,0.11296,86797.0,86796.0,0.00017276]
[1764641755415,0.51296,86797.0,86796.0,0.00017276]
[1764641755616,0.51296,86797.0,86796.0,0.00217276]
[1764641755822,0.51296,86797.0,86796.0,0.11519276]
[1764641756218,0.86296,86797.0,86796.0,0.00317276]
[1764641756630,1.22376,86797.0,86796.0,0.00317276]
[1764641756838,0.11296,86781.0,86780.0,0.3608]
[1764641757036,0.51296,86781.0,86780.0,0.3608]
[1764641757221,0.88296,86781.0,86780.0,0.3608]
[1764641757827,0.51296,86781.0,86780.0,0.47382]
[1764641758031,0.4,86781.0,86780.0,0.47382]
[1764641758530,0.4,86781.0,86772.0,0.00017276]
[1764641758724,0.11296,86773.0,86772.0,0.00017276]
[1764641759043,0.54296,86773.0,86772.0,0.00017276]
[1764641759737,0.17,86773.0,86772.0,0.47699276]
[1764641759928,0.53748,86788.0,86787.0,0.11302]
[1764641760126,0.05723,86782.0,86781.0,0.3608]
[1764641760334,0.53296,86782.0,86781.0,0.3608]
[1764641760633,0.34296,86782.0,86781.0,0.47382]
[1764641760835,0.53748,86788.0,86781.0,0.47382]
[1764641761044,1.00471,86788.0,86787.0,0.11302]
[1764641761740,0.11396,86782.0,86781.0,0.3608]
[1764641761930,0.54396,86782.0,86781.0,0.4165]
[1764641762327,0.54296,86782.0,86781.0,0.3608]
[1764641762539,0.1321,86773.0,86772.0,0.36097276]
[1764641762741,0.9721,86773.0,86772.0,0.36097276]
[1764641762934,0.9721,86773.0,86772.0,0.00017276]
[1764641764036,0.9721,86773.0,86763.0,0.3608]
[1764641764237,0.1321,86756.0,86754.0,0.3608]
[1764641764435,0.5521,86756.0,86754.0,0.3608]
[1764641765440,0.3121,86756.0,86755.0,0.12885898]
[1764641765836,0.00017287,86764.0,86763.0,0.12873]
[1764641766139,0.03017287,86764.0,86763.0,0.48953]
[1764641766530,0.51227287,86764.0,86763.0,0.48953]
[1764641766733,0.26227287,86764.0,86763.0,0.48953]
[1764641766948,0.53227287,86764.0,86763.0,0.48953]
[1764641767746,0.53227287,86764.0,86763.0,0.49153]
[1764641768345,0.00017287,86764.0,86763.0,0.49153]
[1764641768546,0.89227287,86764.0,86763.0,0.3628]
[1764641768749,0.1321,86756.0,86755.0,0.00012898]
[1764641768936,0.8721,86756.0,86755.0,0.00012898]
[1764641769246,0.6421,86756.0,86755.0,0.00012898]
[1764641769431,0.9121,86756.0,86755.0,0.00012898]
[1764641769834,0.17099,86748.0,86746.0,0.3608]
[1764641770035,0.64099,86748.0,86746.0,0.3608]
[1764641770640,0.63799,86748.0,86746.0,0.3608]
[1764641770840,0.99811634,86748.0,86746.0,0.3608]
[1764641771242,0.99911634,86748.0,86746.0,0.3608]
[1764641771830,0.77911634,86748.0,86746.0,0.3608]
[1764641773846,0.94911634,86748.0,86735.0,0.3608]
[1764641774431,0.94911634,86748.0,86742.0,0.3608]
[1764641774836,1.48667634,86748.0,86742.0,0.3608]
[1764641775742,1.24667634,86748.0,86742.0,0.3608]
[1764641775942,1.11667634,86748.0,86742.0,0.3608]
[1764641776337,1.07678634,86748.0,86747.0,0.12890287]
[1764641776646,0.18112634,86748.0,86747.0,0.48970287]
[1764641777833,0.41744287,86764.0,86763.0,0.12873]
[1764641778037,0.77744287,86764.0,86763.0,0.12873]
[1764641778250,0.31017287,86764.0,86763.0,0.1402564]
[1764641778436,0.15430103,86764.0,86763.0,0.1402564]
[1764641778840,0.22049103,86764.0,86763.0,0.1402564]
[1764641779048,0.29240103,86764.0,86763.0,0.06656]
[1764641779243,0.1321,86763.0,86762.0,0.3608]
[1764641779443,0.4021,86763.0,86762.0,0.3608]
[1764641779639,0.8021,86763.0,86762.0,0.3608]
[1764641779946,0.5321,86763.0,86762.0,0.3608]
[1764641780143,0.4021,86763.0,86762.0,0.42736]
[1764641780348,0.4021,86763.0,86762.0,0.48953]
[1764641780745,0.8171,86763.0,86762.0,0.3608]
[1764641781048,0.1321,86756.0,86755.0,0.42736]
[1764641781250,0.5421,86756.0,86755.0,0.48953]
[1764641782145,0.5451,86756.0,86755.0,0.48953]
[1764641782446,0.5451,86756.0,86747.0,0.00017287]
[1764641782447,0.1321,86748.0,86747.0,0.00017287]
[1764641782752,0.8121,86748.0,86747.0,0.00017287]
[1764641783252,0.5821,86748.0,86747.0,0.00017287]
[1764641783750,0.8241,86748.0,86747.0,0.00017287]
[1764641786352,0.6741,86748.0,86747.0,0.00017287]
[1764641786655,0.5141,86748.0,86747.0,0.00017287]
[1764641788541,0.5141,86748.0,86747.0,0.06673287]
[1764641789851,0.5141,86748.0,86747.0,0.00017287]
[1764641790550,0.002,86748.0,86747.0,0.14761137]
[1764641792338,0.3608,86777.0,86747.0,0.53608287]
[1764641792542,0.15934287,86771.0,86770.0,0.13682]
[1764641793355,0.48134287,86771.0,86770.0,0.13682]
[1764641793655,0.04217287,86771.0,86770.0,0.17953]
[1764641793848,0.00017287,86771.0,86770.0,0.17953]
[1764641794043,0.00117287,86771.0,86770.0,0.17953]
[1764641794646,0.00017287,86771.0,86770.0,0.17953]
[1764641794844,0.00017287,86771.0,86770.0,0.13682]
[1764641795043,0.89934287,86771.0,86765.0,0.3608]
[1764641795346,0.13917,86766.0,86765.0,0.5091461]
[1764641795553,0.50917,86766.0,86765.0,0.3608]
[1764641796353,0.50917,86766.0,86765.0,0.3618]
[1764641796756,0.50917,86766.0,86765.0,0.3608]
[1764641797249,0.50917,86766.0,86765.0,0.42967]
[1764641798750,0.50917,86766.0,86765.0,0.3608]
[1764641799260,0.50917,86766.0,86765.0,0.49762]
[1764641799449,0.50917,86766.0,86765.0,0.3608]
[1764641800248,0.50917,86766.0,86758.0,0.3608]
[1764641800249,0.90917,86766.0,86758.0,0.3608]
[1764641800554,0.13917,86759.0,86758.0,0.3608]
[1764641800859,0.95917,86759.0,86758.0,0.3608]
[1764641801656,0.43922,86759.0,86758.0,0.49762]
[1764641802349,0.5374,86767.0,86766.0,0.06887]
[1764641802350,0.67657,86767.0,86766.0,0.06887]
[1764641802550,1.09657,86767.0,86766.0,0.13682]
[1764641803254,0.13917,86766.0,86765.0,0.3608]
[1764641803458,0.65917,86766.0,86765.0,0.49762]
[1764641803846,0.23917,86766.0,86765.0,0.49762]
[1764641804042,0.13917,86766.0,86765.0,0.49762]
[1764641804258,0.67674287,86771.0,86770.0,0.1483455]
[1764641804460,1.05674287,86771.0,86770.0,0.1483455]
[1764641805765,1.05774287,86771.0,86770.0,0.1483455]
[1764641806245,0.00117287,86771.0,86770.0,0.1910555]
[1764641806756,0.00017287,86771.0,86770.0,0.1920555]
[1764641808257,0.00017287,86771.0,86770.0,0.1910555]
[1764641808460,0.00017287,86771.0,86770.0,0.1940555]
[1764641808659,0.29044,86790.0,86789.0,0.1483429]
[1764641808956,0.64044,86790.0,86789.0,0.49762]
[1764641809161,0.13917,86800.0,86799.0,0.13682]
[1764641809456,0.55917,86800.0,86799.0,0.13682]
[1764641809655,0.60044,86800.0,86799.0,0.13682]
[1764641810061,0.55917,86800.0,86799.0,0.13682]
[1764641810460,0.55917,86800.0,86791.0,0.00017287]
[1764641810461,0.13917,86792.0,86791.0,0.00017287]
[1764641810662,0.56917,86792.0,86791.0,0.00017287]
[1764641810956,0.56917,86792.0,86791.0,0.13699287]
[1764641811153,0.43,86792.0,86791.0,0.13699287]
[1764641812056,0.38,86792.0,86791.0,0.13699287]
[1764641812363,0.90917,86792.0,86791.0,0.00017287]
[1764641812562,0.57917,86792.0,86791.0,0.00017287]
[1764641813353,0.92917,86792.0,86791.0,0.00017287]
[1764641814755,0.93017,86792.0,86791.0,0.00017287]
[1764641814956,0.93117,86792.0,86791.0,0.00017287]
[1764641815161,0.792,86792.0,86791.0,0.13699287]
[1764641815353,0.394,86792.0,86791.0,0.14851557]
[1764641816558,0.031,86792.0,86791.0,0.51031557]
[1764641816767,0.001,86792.0,86791.0,0.51031557]
[1764641817265,0.89816,86810.0,86791.0,0.51031557]
[1764641817266,0.13934287,86808.0,86807.0,0.06887]
[1764641817463,0.49934287,86808.0,86807.0,0.13682]
[1764641818654,0.50134287,86808.0,86807.0,0.13682]
[1764641820364,0.13917,86804.0,86803.0,0.3608]
[1764641820573,0.91917,86804.0,86803.0,0.3608]
[1764641820863,0.05,86804.0,86803.0,0.3608]
[1764641821162,0.00217287,86808.0,86803.0,0.3608]
[1764641821163,0.00217287,86808.0,86807.0,0.1483406]
[1764641821564,0.00017287,86808.0,86807.0,0.4983406]
[1764641821757,0.00017287,86808.0,86807.0,0.1483406]
[1764641821959,0.06939287,86808.0,86807.0,0.13682]
[1764641822159,0.13934287,86808.0,86807.0,0.13682]
[1764641822663,0.00017287,86808.0,86807.0,0.13682]
[1764641822857,0.00217287,86808.0,86807.0,0.13682]
[1764641823063,0.12462287,86808.0,86807.0,0.13682]
[1764641823564,0.00217287,86808.0,86807.0,0.13682]
[1764641824064,0.49462287,86808.0,86807.0,0.13682]
[1764641824267,0.49262287,86808.0,86807.0,0.13682]
[1764641824568,0.37017287,86808.0,86807.0,0.13682]
[1764641824765,0.43233287,86808.0,86807.0,0.13682]
[1764641824963,0.49262287,86808.0,86807.0,0.13682]
[1764641825169,0.39017287,86808.0,86807.0,0.13682]
[1764641825371,0.51262287,86808.0,86807.0,0.13682]
[1764641825771,0.51262287,86808.0,86807.0,0.06887]
[1764641825973,0.12245,86805.0,86804.0,0.3608]
[1764641826270,0.53245,86805.0,86804.0,0.42122]
[1764641826471,0.61245,86805.0,86804.0,0.3608]
[1764641826767,0.97245,86805.0,86804.0,0.3608]
[1764641827970,0.03579,86800.0,86797.0,0.3608]
[1764641828160,0.12245,86798.0,86797.0,0.3608]
[1764641828469,0.94245,86798.0,86797.0,0.3608]
[1764641830275,0.12245,86792.0,86789.0,0.3608]
[1764641830568,0.74245,86792.0,86789.0,0.3608]
[1764641831371,0.74245,86792.0,86791.0,0.00117287]
[1764641834373,0.36245,86792.0,86791.0,0.06159287]
[1764641834578,1.26937,86792.0,86791.0,0.06159287]
[1764641836078,1.26937,86792.0,86791.0,0.00117287]
[1764641838078,0.37,86792.0,86791.0,0.12467287]
[1764641838580,0.49245,86792.0,86791.0,0.12467287]
[1764641839564,0.06216,86792.0,86791.0,0.12467287]
[1764641839766,0.65933,86798.0,86797.0,0.1350219]
[1764641839970,1.04933,86798.0,86797.0,0.4958219]
[1764641840675,0.51245,86798.0,86797.0,0.3608]
[1764641840875,0.88245,86798.0,86797.0,0.3608]
[1764641842074,1.41933,86798.0,86797.0,0.3608]
[1764641842286,0.12245,86792.0,86791.0,0.00017287]
[1764641842582,0.97245,86792.0,86791.0,0.00017287]
[1764641842978,0.70245,86792.0,86791.0,0.00017287]
[1764641843975,0.43,86792.0,86791.0,0.13619557]
[1764641844178,0.53692,86802.0,86801.0,0.1350214]
[1764641844479,0.53692,86802.0,86801.0,0.1235]
[1764641844480,1.02937,86802.0,86801.0,0.1235]
[1764641844972,0.59692,86802.0,86801.0,0.1235]
[1764641845364,0.06122408,86823.0,86807.0,0.1350206]
[1764641845579,0.39017287,86808.0,86807.0,0.1350206]
[1764641846575,0.39017287,86808.0,86807.0,0.1235]
[1764641846984,0.39117287,86808.0,86807.0,0.1235]
[1764641848975,0.51362287,86808.0,86807.0,0.1235]
[1764641849386,0.06117287,86808.0,86807.0,0.1235]
[1764641849574,0.00117287,86808.0,86807.0,0.1235]
[1764641850779,2.87e-06,86808.0,86807.0,0.16499145]
[1764641850980,2.87e-06,86808.0,86807.0,0.4535]
[1764641852175,2.87e-06,86808.0,86807.0,0.49474166]
[1764641852484,2.87e-06,86808.0,86807.0,0.4535]
[1764641852787,4.57e-06,86816.0,86815.0,0.1365895]
[1764641852972,4.57e-06,86816.0,86815.0,0.5473895]
[1764641853177,4.57e-06,86816.0,86815.0,0.8473895]
[1764641853672,4.57e-06,86816.0,86815.0,1.1173895]
[1764641854189,0.00200457,86816.0,86815.0,1.1585727]
[1764641854684,0.00200457,86816.0,86815.0,1.1685727]
[1764641855177,0.00200457,86816.0,86815.0,1.1273895]
[1764641855378,0.00200457,86816.0,86815.0,0.5473895]
[1764641855686,0.00200457,86816.0,86815.0,0.4973895]
[1764641855886,0.3608,86847.0,86840.0,0.0115162]
[1764641856074,0.1192,86841.0,86840.0,0.1358262]
[1764641856269,0.5292,86841.0,86840.0,0.1358262]
[1764641857182,0.5302,86841.0,86840.0,0.1358262]
[1764641857778,0.5312,86841.0,86840.0,0.1358262]
[1764641858491,0.5312,86841.0,86840.0,0.1475245]
[1764641858678,0.5312,86841.0,86840.0,0.12431]
[1764641858878,0.5312,86841.0,86840.0,0.06127]
[1764641859585,0.1192,86840.0,86839.0,0.3608]
[1764641859782,0.8692,86840.0,86839.0,0.3608]
[1764641860587,0.8702,86840.0,86839.0,0.3608]
[1764641861581,1.80672,86840.0,86832.0,0.00017276]
[1764641861782,0.1192,86822.0,86821.0,0.3608]
[1764641861989,0.5292,86822.0,86821.0,0.3608]
[1764641862192,0.5192,86822.0,86821.0,0.48511]
[1764641862494,0.3608,86833.0,86832.0,0.06127]
[1764641862495,0.48,86833.0,86832.0,0.06127]
[1764641862792,0.059,86825.0,86824.0,0.12448276]
[1764641862991,0.4692,86825.0,86824.0,0.12448276]
[1764641863391,0.35,86825.0,86824.0,0.13600106]
[1764641863789,0.4692,86825.0,86824.0,0.12448276]
[1764641863976,0.4692,86825.0,86824.0,0.00017276]
[1764641864175,0.4702,86825.0,86824.0,0.00017276]
[1764641864788,0.1202,86825.0,86824.0,0.00017276]
[1764641864992,0.5102,86825.0,86824.0,0.00017276]
[1764641865794,0.2602,86825.0,86824.0,0.00017276]
[1764641866377,0.4702,86825.0,86824.0,0.00017276]
[1764641866989,0.2002,86825.0,86824.0,0.00017276]
[1764641867381,0.1202,86825.0,86824.0,0.12448276]
[1764641868089,0.1202,86825.0,86824.0,0.00017276]
[1764641869082,0.1202,86825.0,86824.0,0.06144276]
[1764641869283,0.1202,86825.0,86824.0,0.12448276]
[1764641869586,0.1192,86825.0,86824.0,0.12448276]
[1764641869894,0.1192,86825.0,86824.0,0.06144276]
[1764641871797,0.1192,86825.0,86824.0,0.00017276]
[1764641871996,0.5492,86825.0,86824.0,0.00017276]
[1764641873794,0.1192,86825.0,86824.0,0.00017276]
[1764641873994,0.059,86825.0,86824.0,0.12448276]
[1764641874199,0.5086733,86834.0,86833.0,0.06127]
[1764641874200,0.48,86834.0,86833.0,0.06127]
[1764641874684,0.1192,86825.0,86824.0,0.13600106]
[1764641874890,0.5192,86825.0,86824.0,0.00017276]
[1764641875300,0.58042408,86825.0,86824.0,0.00017276]
[1764641875489,1.05564,86825.0,86824.0,0.00017276]
[1764641875790,1.41644,86825.0,86824.0,0.00017276]
[1764641876192,1.41644,86825.0,86802.0,0.3723212]
[1764641876386,0.1192,86813.0,86802.0,0.3608]
[1764641876592,1.07564,86813.0,86802.0,0.3608]
[1764641877104,1.13770509,86813.0,86802.0,0.3608]
[1764641877401,1.13770509,86813.0,86804.0,0.00017276]
[1764641878202,0.1192,86805.0,86804.0,0.06144276]
[1764641878901,0.1192,86805.0,86804.0,0.00017276]
[1764641879088,0.1192,86805.0,86804.0,0.06144276]
[1764641879999,0.08280783,86821.0,86820.0,0.16088]
[1764641880000,0.00017276,86821.0,86820.0,0.16088]
[1764641880207,0.11937276,86821.0,86820.0,0.52168]
[1764641880399,0.00017276,86821.0,86820.0,0.52168]
[1764641882101,0.00017276,86821.0,86820.0,0.52268]
[1764641884891,0.11207276,86821.0,86820.0,0.52268]
[1764641886204,0.11207276,86821.0,86820.0,0.3618]
[1764641887392,0.11207276,86821.0,86820.0,0.3608]
[1764641887606,0.11207276,86821.0,86820.0,0.3618]
[1764641887820,0.52207276,86821.0,86820.0,0.3618]
[1764641888308,0.52207276,86821.0,86820.0,0.001]
[1764641888506,0.52207276,86821.0,86812.0,0.46989]
[1764641888507,0.1119,86813.0,86812.0,0.46989]
[1764641889007,0.00017276,86821.0,86820.0,0.14174]
[1764641889209,0.05889276,86821.0,86820.0,0.14174]
[1764641889405,0.05989276,86821.0,86820.0,0.14174]
[1764641889708,0.11307276,86821.0,86820.0,0.14174]
[1764641890903,0.1119,86818.0,86817.0,0.05436]